lending/lending_fUSD_20240207
["ID","MTS","AMOUNT","RATE_DAILY","PERIOD"]
[313428466,1707337842007,-3299.03197844,0.000379,3]
[313428591,1707337843383,-315370.56222959,0.000379,3]
[313428593,1707337843395,-544.22027868,0.000379,3]
[313428601,1707337843504,-51789.21895049,0.000379,3]
[313428602,1707337843514,-215.096353,0.00037951,5]
[313428603,1707337843523,-212.85622318,0.00037963,8]
[313428604,1707337843533,-1210.34430861,0.00038048,2]
[313428605,1707337843542,-5568.24236541,0.00038252,28]
[313428606,1707337843554,-1233.06754185,0.00038252,28]
[313428607,1707337843563,-1187.24,0.00038252,2]
[313428608,1707337843572,-36.78870752,0.00038268,9]
[313428609,1707337843584,-168.21129248,0.00038268,9]
[313428610,1707337843593,-153.87,0.000383,3]
[313428611,1707337843603,-153.87,0.000383,3]
[313428612,1707337843612,-153.33,0.000383,3]
[313428613,1707337843621,-153.33,0.000383,3]
[313428614,1707337843630,-153.33,0.000383,3]
[313428615,1707337843639,-153.33,0.000383,3]
[313428616,1707337843649,-153.33,0.000383,3]
[313428617,1707337843658,-153.33,0.000383,3]
[313428618,1707337843667,-153.33,0.000383,3]
[313428619,1707337843677,-153.33,0.000383,3]
[313428620,1707337843686,-153.33,0.000383,3]
[313428621,1707337843695,-153.33,0.000383,3]
[313428622,1707337843704,-153.33,0.000383,3]
[313428623,1707337843714,-153.33,0.000383,3]
[313428624,1707337843725,-153.33,0.000383,3]
[313428625,1707337843734,-153.33,0.000383,3]
[313428626,1707337843743,-153.33,0.000383,3]
[313428627,1707337843753,-153.33,0.000383,3]
[313428628,1707337843762,-153.33,0.000383,3]
[313428629,1707337843771,-153.33,0.000383,3]
[313428630,1707337843780,-153.33,0.000383,3]
[313428631,1707337843790,-153.51026156,0.00038324,2]
[313428632,1707337843799,-151.71,0.00038356,2]
[313428634,1707337843808,-1672.26027532,0.00038536,12]
[313428636,1707337843817,-608.0,0.00038687,2]
[313428637,1707337843827,-162.65,0.00038864,2]
[313428638,1707337843837,-740.72171679,0.0003888,2]
[313428639,1707337843846,-740.72171675,0.0003888,2]
[313428640,1707337843855,-740.72171675,0.0003888,2]
[313428641,1707337843864,-740.72171675,0.0003888,2]
[313428642,1707337843874,-740.72171675,0.0003888,2]
[313428643,1707337843883,-740.72171675,0.0003888,2]
[313428644,1707337843892,-200.0,0.00039029,15]
[313428645,1707337843901,-194.74,0.00039166,2]
[313428646,1707337843910,-1672.26027532,0.00039445,13]
[313428647,1707337843919,-1000.0,0.0003946,10]
[313428648,1707337843928,-153.51026156,0.00039466,4]
[313428649,1707337843937,-212.85622318,0.00039544,9]
[313428650,1707337843946,-1187.24,0.0003957,2]
[313428651,1707337843955,-1210.34430861,0.00039627,2]
[313428652,1707337843964,-151.71,0.00039635,2]
[313428653,1707337843976,-1940.97223,0.0003965,2]
[313428654,1707337843986,-622.47316518,0.00039679,5]
[313428655,1707337843998,-1321.86465,0.00039679,5]
[313428656,1707337844010,-455.39861255,0.00039679,5]
[313428657,1707337844022,-4212.17748532,0.00039679,5]
[313428658,1707337844031,-594.33,0.00039726,2]
[313428659,1707337844040,-800.0,0.00039745,10]
[313428660,1707337844050,-264.60426371,0.000399,13]
[313428661,1707337844059,-595.00126732,0.000399,2]
[313428662,1707337844068,-361.91843692,0.000399,2]
[313428663,1707337844078,-2176.23640657,0.000399,2]
[313428664,1707337844087,-1017.42719587,0.000399,2]
[313428665,1707337844097,-1000.0,0.00039997,2]
[313428666,1707337844106,-2013.63222129,0.0004,10]
[313428667,1707337844136,-644.73698917,0.0004,10]
[313428668,1707337844148,-3341.63078954,0.0004,10]
[313428669,1707337844158,-171.51982399,0.0004,30]
[313428670,1707337844167,-1000.0,0.0004,2]
[313428671,1707337844177,-3184.83157822,0.0004,5]
[313428672,1707337844187,-1399.23080802,0.0004,30]
[313428673,1707337844197,-342.0,0.00040099,2]
[313428674,1707337844207,-2518.0,0.00040099,2]
[313428675,1707337844216,-180.8883393,0.00040257,2]
[313428676,1707337844228,-150.0,0.00040301,2]
[313428677,1707337844237,-1500.0,0.00040323,2]
[313428678,1707337844248,-1672.26027532,0.00040355,14]
[313428679,1707337844258,-171.84065553,0.00040385,32]
[313428680,1707337844267,-150.0,0.00040436,2]
[313428681,1707337844277,-419.68147873,0.00040516,4]
[313428682,1707337844287,-1215.42375959,0.00040535,2]
[313428683,1707337844297,-421.17,0.00040548,2]
[313428684,1707337844306,-255.25,0.00040548,2]
[313428685,1707337844316,-153.51026156,0.00040607,9]
[313428686,1707337844326,-150.0,0.00040711,2]
[313428687,1707337844336,-1500.0,0.00040724,2]
[313428688,1707337844346,-152.0,0.00040817,3]
[313428689,1707337844356,-310.70116746,0.00040844,2]
[313428690,1707337844365,-150.0,0.00040855,2]
[313428691,1707337844375,-1187.24,0.00040888,2]
[313428692,1707337844384,-150.0,0.00040888,2]
[313428693,1707337844393,-151.71,0.00040913,2]
[313428694,1707337844403,-162.65,0.00040918,2]
[313428695,1707337844412,-150.0,0.00040939,2]
[313428696,1707337844422,-150.0,0.00040978,2]
[313428697,1707337844432,-500.0,0.00041,14]
[313428698,1707337844441,-960.39447797,0.00041,2]
[313428699,1707337844451,-150.0,0.00041009,2]
[313428700,1707337844460,-150.0,0.00041089,2]
[313428701,1707337844470,-160.742677,0.00041096,14]
[313428702,1707337844482,-151.0,0.00041096,14]
[313428703,1707337844492,-152.50423,0.00041096,14]
[313428704,1707337844503,-151.0,0.00041096,14]
[313428705,1707337844513,-151.0,0.00041096,14]
[313428706,1707337844523,-151.0,0.00041096,14]
[313428707,1707337844532,-151.0,0.00041096,14]
[313428708,1707337844542,-430.724216,0.00041096,2]
[313428709,1707337844552,-151.0,0.00041096,14]
[313428710,1707337844561,-430.724216,0.00041096,2]
[313428711,1707337844571,-151.0,0.00041096,14]
[313428712,1707337844581,-332.57745,0.00041096,14]
[313428713,1707337844590,-332.57745,0.00041096,14]
[313428714,1707337844600,-151.0,0.00041096,14]
[313428715,1707337844610,-151.0,0.00041096,14]
[313428716,1707337844620,-151.0,0.00041096,14]
[313428717,1707337844629,-151.0,0.00041096,14]
[313428718,1707337844639,-151.0,0.00041096,14]
[313428719,1707337844648,-318.305467,0.00041096,14]
[313428720,1707337844658,-318.305467,0.00041096,14]
[313428721,1707337844667,-151.0,0.00041096,14]
[313428722,1707337844677,-1500.0,0.00041097,2]
[313428723,1707337844687,-150.0,0.00041118,2]
[313428724,1707337844696,-212.85622318,0.00041125,10]
[313428725,1707337844707,-150.0,0.00041162,2]
[313428726,1707337844717,-1210.34430861,0.00041206,5]
[313428727,1707337844727,-150.0,0.00041234,2]
[313428728,1707337844737,-1672.26027532,0.00041264,15]
[313428729,1707337844748,-150.0,0.00041281,2]
[313428730,1707337844757,-287.70361966,0.00041305,2]
[313428731,1707337844784,-12.29638034,0.00041305,2]
[313428732,1707337844793,-300.0,0.00041344,2]
[313428733,1707337844804,-150.0,0.00041348,2]
[313428734,1707337844814,-150.0,0.00041354,2]
[313428735,1707337844824,-205.0,0.00041373,16]
[313428736,1707337844834,-150.0,0.00041375,30]
[313428737,1707337844844,-1500.0,0.00041397,2]
[313428738,1707337844853,-194.74,0.0004143,2]
[313428739,1707337844863,-150.0,0.00041441,2]
[313428740,1707337844873,-150.0,0.0004145,2]
[313428741,1707337844882,-150.0,0.00041475,2]
[313428742,1707337844892,-740.72171675,0.00041488,3]
[313428743,1707337844901,-150.0,0.00041497,2]
[313428744,1707337844912,-892.3,0.000415,7]
[313428745,1707337844921,-1500.0,0.00041518,2]
[313428746,1707337844931,-152.52,0.0004153,2]
[313428747,1707337844941,-155.95566187,0.00041565,2]
[313428748,1707337844951,-1500.0,0.00041581,2]
[313428749,1707337844960,-1614.785869,0.000416,38]
[313428750,1707337844970,-150.0,0.00041623,2]
[313428751,1707337844981,-300.0,0.00041642,2]
[313428752,1707337844989,-150.0,0.00041646,2]
[313428753,1707337845000,-150.0,0.00041664,2]
[313428754,1707337845009,-1500.0,0.00041683,2]
[313428755,1707337845019,-1500.0,0.00041697,2]
[313428756,1707337845029,-153.51026156,0.00041749,13]
[313428757,1707337845040,-1500.0,0.00041762,2]
[313428758,1707337845050,-152.73170136,0.0004177,2]
[313428759,1707337845059,-153.04798605,0.0004177,2]
[313428760,1707337845069,-175.72154273,0.0004177,2]
[313428761,1707337845078,-150.0,0.00041783,2]
[313428762,1707337845088,-150.0,0.00041794,2]
[313428763,1707337845097,-1500.0,0.00041797,2]
[313428764,1707337845107,-614.37144821,0.000418,30]
[313428765,1707337845117,-1500.0,0.0004181,2]
[313428766,1707337845127,-150.0,0.00041826,2]
[313428767,1707337845137,-1500.0,0.0004183,2]
[313428768,1707337845148,-1500.0,0.00041844,2]
[313428769,1707337845158,-300.0,0.00041848,2]
[313428770,1707337845168,-832.228,0.00041849,2]
[313428771,1707337845177,-215.0,0.00041849,2]
[313428772,1707337845187,-1251.0,0.00041849,2]
[313428773,1707337845197,-1232.0,0.00041849,2]
[313428774,1707337845207,-706.0,0.00041849,2]
[313428775,1707337845216,-1943.0,0.00041849,2]
[313428776,1707337845229,-428.0,0.00041849,2]
[313428777,1707337845239,-858.0,0.00041849,2]
[313428778,1707337845248,-320.0,0.00041849,2]
[313428779,1707337845258,-150.0,0.00041849,2]
[313428780,1707337845588,-1138.0,0.00041849,2]
[313428781,1707337845597,-200.0,0.00041854,15]
[313428782,1707337845607,-800.0,0.00041854,15]
[313428783,1707337845616,-150.0,0.00041881,2]
[313428784,1707337845626,-14679.00163838,0.000419,30]
[313428785,1707337845636,-150.0,0.000419,2]
[313428786,1707337845645,-548.7580704,0.000419,2]
[313428787,1707337845655,-4929.11,0.00041902,2]
[313428788,1707337845665,-1535.38,0.00041902,2]
[313428789,1707337845676,-424.03,0.00041902,2]
[313428790,1707337845685,-14649.41833795,0.00041902,30]
[313428791,1707337845698,-1899.71166205,0.00041902,30]
[313428792,1707337845708,-150.0,0.00041904,2]
[313428793,1707337845717,-150.0,0.00041904,2]
[313428794,1707337845728,-150.0,0.00041904,2]
[313428795,1707337845737,-156.17950046,0.00041906,2]
[313428796,1707337845746,-150.0,0.00041908,2]
[313428797,1707337845755,-150.0,0.00041912,2]
[313428798,1707337845764,-150.0,0.00041912,2]
[313428799,1707337845774,-150.0,0.00041914,2]
[313428800,1707337845784,-150.0,0.00041914,2]
[313428801,1707337845794,-150.0,0.00041915,2]
[313428802,1707337845803,-1394.26788684,0.00041926,2]
[313428803,1707337845816,-105.73211316,0.00041926,2]
[313428804,1707337845826,-150.0,0.00041928,2]
[313428805,1707337845835,-150.0,0.00041929,2]
[313428806,1707337845845,-150.0,0.00041934,2]
[313428807,1707337845855,-150.0,0.00041936,2]
[313428808,1707337845865,-300.0,0.00041937,2]
[313428809,1707337845874,-150.0,0.00041941,2]
[313428810,1707337845884,-1500.0,0.00041947,2]
[313428811,1707337845893,-150.0,0.00041948,2]
[313428812,1707337845902,-150.0,0.00041949,2]
[313428813,1707337845912,-1500.0,0.00041954,2]
[313428814,1707337845922,-150.0,0.00041954,2]
[313428815,1707337845931,-150.0,0.00041954,2]
[313428816,1707337845940,-150.0,0.0004196,2]
[313428817,1707337845950,-150.0,0.00041967,2]
[313428818,1707337845960,-150.0,0.0004197,2]
[313428819,1707337845969,-1500.0,0.00041975,2]
[313428820,1707337845981,-150.0,0.00041978,2]
[313428821,1707337845991,-150.0,0.00041978,2]
[313428822,1707337846001,-1000.0,0.00041981,2]
[313428823,1707337846011,-1000.0,0.00041981,2]
[313428824,1707337846021,-321.66478698,0.00041981,2]
[313428825,1707337846041,-678.33521302,0.00041981,2]
[313428826,1707337846050,-504.09219039,0.00041981,2]
[313428827,1707337846062,-490.2129047,0.00041981,2]
[313428828,1707337846073,-5.69490491,0.00041981,2]
[313428829,1707337846083,-1000.0,0.00041981,2]
[313428831,1707337846094,-1000.0,0.00041981,2]
[313428833,1707337846103,-1000.0,0.00041981,2]
[313428834,1707337846113,-1000.0,0.00041981,2]
[313428835,1707337846123,-180.3842,0.00041981,2]
[313428836,1707337846132,-150.0,0.00041984,2]
[313428837,1707337846142,-150.0,0.00041984,2]
[313428840,1707337846152,-150.0,0.00041995,2]
[313428841,1707337846162,-16406.81670034,0.00042,2]
[313428843,1707337846172,-2476.56354704,0.00042,4]
[313428845,1707337846182,-500.0,0.00042,14]
[313428846,1707337846193,-150.0,0.00042004,2]
[313428847,1707337846203,-1500.0,0.00042005,2]
[313428848,1707337846213,-150.0,0.00042005,2]
[313428849,1707337846222,-150.0,0.00042007,2]
[313428850,1707337846233,-150.0,0.00042008,2]
[313428851,1707337846243,-150.0,0.00042009,2]
[313428852,1707337846252,-150.0,0.0004201,2]
[313428853,1707337846262,-150.0,0.00042012,2]
[313428854,1707337846271,-150.0,0.00042017,2]
[313428856,1707337846281,-150.0,0.0004202,2]
[313428858,1707337846290,-150.0,0.00042021,2]
[313428860,1707337846300,-150.0,0.00042027,2]
[313428862,1707337846309,-89.25973513,0.00042031,2]
[313428864,1707337846321,-60.74026487,0.00042031,2]
[313428866,1707337846331,-150.0,0.00042033,2]
[313428868,1707337846341,-150.0,0.00042039,2]
[313428870,1707337846351,-150.0,0.00042041,2]
[313428871,1707337846360,-150.0,0.00042045,2]
[313428872,1707337846370,-150.0,0.00042047,2]
[313428873,1707337846379,-150.0,0.00042057,2]
[313428874,1707337846388,-150.0,0.0004206,2]
[313428875,1707337846397,-150.0,0.00042068,2]
[313428876,1707337846407,-150.0,0.00042073,2]
[313428877,1707337846416,-150.0,0.00042074,2]
[313428878,1707337846425,-150.0,0.00042075,2]
[313428879,1707337846435,-150.0,0.00042077,2]
[313428880,1707337846445,-150.0,0.0004208,2]
[313428881,1707337846454,-150.0,0.00042081,2]
[313428882,1707337846463,-150.0,0.00042088,2]
[313428883,1707337846474,-150.0,0.00042089,2]
[313428884,1707337846486,-150.0,0.0004209,2]
[313428885,1707337846501,-150.0,0.00042096,2]
[313428886,1707337846512,-300.0,0.00042097,2]
[313428887,1707337846521,-1500.0,0.000421,38]
[313428888,1707337846530,-150.0,0.000421,2]
[313428889,1707337846539,-307.92,0.000421,2]
[313428890,1707337846548,-300.0,0.00042103,2]
[313428891,1707337846557,-150.0,0.00042103,2]
[313428892,1707337846566,-150.0,0.00042108,2]
[313428893,1707337846577,-150.0,0.00042109,2]
[313428894,1707337846586,-150.0,0.00042109,2]
[313428895,1707337846596,-150.0,0.00042111,2]
[313428896,1707337846605,-150.0,0.00042112,2]
[313428897,1707337846615,-150.0,0.00042118,2]
[313428898,1707337846624,-150.0,0.00042119,2]
[313428899,1707337846633,-150.0,0.00042119,2]
[313428900,1707337846642,-150.0,0.00042121,2]
[313428901,1707337846651,-150.0,0.00042128,2]
[313428902,1707337846661,-150.0,0.00042128,2]
[313428903,1707337846671,-307.40170157,0.00042129,2]
[313428904,1707337846680,-150.0,0.00042129,2]
[313428905,1707337846689,-150.0,0.00042131,2]
[313428906,1707337846699,-150.0,0.00042131,2]
[313428907,1707337846709,-150.0,0.00042132,2]
[313428908,1707337846718,-150.0,0.00042132,2]
[313428910,1707337846728,-150.0,0.00042134,2]
[313428912,1707337846737,-150.0,0.00042139,2]
[313428914,1707337846747,-150.0,0.00042147,2]
[313428916,1707337846756,-1940.97223,0.0004215,12]
[313428918,1707337846766,-150.0,0.00042151,2]
[313428920,1707337846775,-150.0,0.00042151,2]
[313428922,1707337846784,-150.0,0.00042155,2]
[313428924,1707337846793,-302.97572168,0.0004216,2]
[313428926,1707337846802,-150.0,0.00042161,2]
[313428928,1707337846812,-150.0,0.00042161,2]
[313428929,1707337846821,-150.0,0.00042162,2]
[313428930,1707337846830,-150.0,0.00042165,2]
[313428931,1707337846840,-150.0,0.00042166,2]
[313428932,1707337846849,-195059.6614067,0.0004217,2]
[313428933,1707337846858,-1672.26027532,0.00042173,16]
[313428934,1707337846868,-150.0,0.00042174,2]
[313428935,1707337846877,-150.01,0.00042191,2]
[313428936,1707337846886,-3310.68912683,0.00042191,2]
[313428937,1707337846896,-225.96783344,0.00042191,2]
[313428938,1707337846905,-151.71,0.00042192,2]
[313428939,1707337846914,-2236.01367538,0.00042192,4]
[313428940,1707337846924,-250.07664637,0.00042192,90]
[313428941,1707337846934,-235.10419243,0.00042192,4]
[313428942,1707337846943,-226.74166719,0.00042192,4]
[313428943,1707337846953,-209.9487834,0.00042192,4]
[313428944,1707337846963,-257.80767106,0.00042192,2]
[313428945,1707337846973,-276.25977715,0.00042192,4]
[313428946,1707337846983,-198.55528335,0.00042192,4]
[313428947,1707337846993,-190.44595438,0.00042192,4]
[313428948,1707337847003,-199.51464128,0.00042192,4]
[313428949,1707337847012,-150.0,0.00042198,30]
[313428950,1707337847021,-150.0,0.00042198,30]
[313428951,1707337847030,-150.0,0.00042198,30]
[313428952,1707337847040,-168.461342,0.00042199,14]
[313428953,1707337847049,-151.0,0.00042199,14]
[313428954,1707337847059,-151.0,0.00042199,14]
[313428955,1707337847068,-151.0,0.00042199,14]
[313428956,1707337847078,-151.0,0.00042199,14]
[313428957,1707337847087,-430.724216,0.00042199,2]
[313428958,1707337847097,-430.724216,0.00042199,2]
[313428959,1707337847107,-151.0,0.00042199,14]
[313428960,1707337847117,-151.0,0.00042199,14]
[313428961,1707337847126,-7288.0652473,0.00042199,2]
[313428962,1707337847136,-151.0,0.00042199,14]
[313428963,1707337847146,-332.57745,0.00042199,14]
[313428964,1707337847155,-332.57745,0.00042199,14]
[313428965,1707337847165,-151.0,0.00042199,14]
[313428966,1707337847174,-12523.2570805,0.00042199,2]
[313428967,1707337847184,-151.0,0.00042199,14]
[313428968,1707337847193,-151.0,0.00042199,14]
[313428969,1707337847203,-151.0,0.00042199,14]
[313428970,1707337847212,-1772.8704653,0.00042199,2]
[313428971,1707337847222,-151.0,0.00042199,14]
[313428972,1707337847232,-203.975721,0.00042199,14]
[313428973,1707337847241,-151.0,0.00042199,14]
[313428974,1707337847251,-196.0,0.00042199,14]
[313428975,1707337847261,-151.0,0.00042199,5]
[313428976,1707337847270,-151.0,0.00042199,5]
[313428977,1707337847279,-151.0,0.00042199,14]
[313428978,1707337847288,-151.0,0.00042199,14]
[313428979,1707337847298,-221.608802,0.00042199,14]
[313428980,1707337847307,-221.608802,0.00042199,14]
[313428981,1707337847317,-226.531106,0.00042199,14]
[313428982,1707337847326,-6924.3317272,0.00042199,2]
[313428983,1707337847335,-318.305467,0.00042199,14]
[313428984,1707337847345,-318.305467,0.00042199,14]
[313428985,1707337847355,-151.0,0.00042199,14]
[313428986,1707337847364,-290.302316,0.00042199,14]
[313428987,1707337847373,-290.302316,0.00042199,14]
[313428988,1707337847382,-151.0,0.00042199,14]
[313428989,1707337847392,-8252.892325,0.00042199,14]
[313428990,1707337847401,-8252.892325,0.00042199,14]
[313428991,1707337847411,-151.0,0.00042199,14]
[313428992,1707337847421,-151.0,0.00042199,14]
[313428993,1707337847430,-151.0,0.00042199,14]
[313428994,1707337847440,-151.0,0.00042199,14]
[313428995,1707337847449,-252.601379,0.00042199,14]
[313428996,1707337847459,-176.293836,0.00042199,14]
[313428997,1707337847468,-161.289658,0.00042199,14]
[313428998,1707337847479,-161.289658,0.00042199,14]
[313428999,1707337847489,-385.695419,0.00042199,14]
[313429000,1707337847499,-385.695419,0.00042199,14]
[313429001,1707337847509,-151.0,0.00042199,14]
[313429002,1707337847520,-151.0,0.00042199,14]
[313429003,1707337847531,-151.0,0.00042199,14]
[313429004,1707337847542,-151.0,0.000422,14]
[313429005,1707337847553,-1826.89232593,0.00042287,14]
[313429006,1707337847563,-892.3,0.000423,7]
[313429007,1707337847572,-264.60426371,0.000424,16]
[313429008,1707337847582,-4000.0,0.000425,2]
[313429009,1707337847591,-200.0,0.000426,2]
[313429010,1707337847600,-1000.0,0.000427,2]
[313429011,1707337847610,-212.85622318,0.00042706,10]
[313429012,1707337847619,-1000.0,0.00042752,15]
[313429013,1707337847629,-1000.0,0.00042752,15]
[313429014,1707337847638,-1210.34430861,0.00042785,5]
[313429015,1707337847649,-153.87,0.000428,4]
[313429016,1707337847658,-153.87,0.000428,4]
[313429017,1707337847667,-153.33,0.000428,4]
[313429018,1707337847676,-153.33,0.000428,4]
[313429019,1707337847687,-153.33,0.000428,4]
[313429020,1707337847696,-153.33,0.000428,4]
[313429021,1707337847705,-153.33,0.000428,4]
[313429022,1707337847715,-153.33,0.000428,4]
[313429023,1707337847725,-153.33,0.000428,4]
[313429024,1707337847734,-153.33,0.000428,4]
[313429025,1707337847743,-153.33,0.000428,4]
[313429026,1707337847753,-153.33,0.000428,4]
[313429027,1707337847762,-153.33,0.000428,4]
[313429028,1707337847772,-153.33,0.000428,4]
[313429029,1707337847783,-153.33,0.000428,4]
[313429030,1707337847792,-153.33,0.000428,4]
[313429031,1707337847801,-153.33,0.000428,4]
[313429032,1707337847811,-153.33,0.000428,4]
[313429033,1707337847820,-153.33,0.000428,4]
[313429034,1707337847830,-153.33,0.000428,4]
[313429035,1707337847840,-153.33,0.000428,4]
[313429036,1707337847850,-153.51026156,0.0004289,17]
[313429037,1707337847860,-215.70794175,0.000429,30]
[313429038,1707337847869,-150.0,0.000429,32]
[313429039,1707337847879,-589.639674,0.000429,14]
[313429040,1707337847888,-150.0,0.00042921,30]
[313429041,1707337847964,-150.0,0.00042921,30]
[313429042,1707337847975,-187.0,0.00042944,2]
[313429043,1707337847984,-162.65,0.00042973,2]
[313429044,1707337847993,-608.0,0.00042986,2]
[313429045,1707337848002,-200.0,0.00042987,2]
[313429046,1707337848011,-1282.53928964,0.00042988,2]
[313429047,1707337848021,-917.18371753,0.00042989,2]
[313429048,1707337848030,-481.50199841,0.00042989,4]
[313429049,1707337848039,-159.38545617,0.00042998,4]
[313429050,1707337848058,-207.57371616,0.00042998,4]
[313429051,1707337848069,-255.11217212,0.00042998,4]
[313429052,1707337848079,-156.04487879,0.00042998,4]
[313429053,1707337848089,-269.14414537,0.00042998,4]
[313429054,1707337848098,-155.3699649,0.00042998,4]
[313429055,1707337848108,-155.17634676,0.00042998,4]
[313429056,1707337848118,-155.69332566,0.00042998,4]
[313429057,1707337848128,-287.63815819,0.00042998,4]
[313429058,1707337848138,-156.22080739,0.00042998,4]
[313429059,1707337848147,-202.9134098,0.00042998,4]
[313429060,1707337848157,-268.23016042,0.00042998,4]
[313429061,1707337848166,-156.64964294,0.00042998,4]
[313429062,1707337848176,-18388.01554708,0.00042998,4]
[313429063,1707337848186,-167.63944225,0.00042998,4]
[313429064,1707337848196,-1710.18201644,0.00042998,4]
[313429065,1707337848205,-161.05422955,0.00042998,4]
[313429066,1707337848214,-151.0,0.00042998,14]
[313429067,1707337848225,-150.0,0.00042999,30]
[313429068,1707337848235,-150.0,0.00042999,30]
[313429069,1707337848244,-187.43375366,0.00042999,30]
[313429070,1707337848254,-100000.0,0.00043,13]
[313429071,1707337848264,-810.18251593,0.00043,30]
[313429072,1707337848274,-858.07,0.00043,7]
[313429073,1707337848284,-1010.0,0.00043,12]
[313429074,1707337848293,-892.3,0.00043,7]
[313429075,1707337848302,-500.0,0.00043,14]
[313429076,1707337848311,-345.0,0.00043,30]
[313429077,1707337848320,-1000.0,0.00043,30]
[313429078,1707337848329,-307.92,0.00043055,2]
[313429079,1707337848339,-1672.26027532,0.00043082,17]
[313429080,1707337848348,-2518.0,0.00043099,2]
[313429081,1707337848358,-154.91295747,0.00043193,10]
[313429082,1707337848367,-151.0,0.0004323,14]
[313429083,1707337848377,-151.0,0.0004323,14]
[313429084,1707337848386,-151.0,0.0004323,14]
[313429085,1707337848395,-151.0,0.0004323,14]
[313429086,1707337848404,-430.724216,0.0004323,2]
[313429087,1707337848413,-430.724216,0.0004323,2]
[313429088,1707337848422,-151.0,0.00043258,14]
[313429089,1707337848433,-151.0,0.00043258,14]
[313429090,1707337848442,-6053.0847385,0.00043258,2]
[313429091,1707337848451,-151.0,0.00043258,14]
[313429092,1707337848461,-332.57745,0.00043258,14]
[313429093,1707337848470,-332.57745,0.00043258,14]
[313429094,1707337848484,-151.0,0.00043258,14]
[313429095,1707337848493,-151.0,0.00043258,14]
[313429096,1707337848502,-151.0,0.00043258,14]
[313429097,1707337848512,-151.0,0.00043258,14]
[313429098,1707337848522,-151.0,0.00043258,14]
[313429099,1707337848531,-151.0,0.00043258,14]
[313429100,1707337848540,-151.0,0.00043258,5]
[313429101,1707337848551,-151.0,0.00043258,5]
[313429102,1707337848562,-151.0,0.00043258,14]
[313429103,1707337848575,-151.0,0.00043258,14]
[313429104,1707337848585,-221.608802,0.00043258,14]
[313429105,1707337848594,-221.608802,0.00043258,14]
[313429106,1707337848603,-318.305467,0.00043258,14]
[313429107,1707337848614,-318.305467,0.00043258,14]
[313429108,1707337848623,-151.0,0.00043258,14]
[313429109,1707337848633,-290.302316,0.00043258,14]
[313429110,1707337848643,-290.302316,0.00043258,14]
[313429111,1707337848653,-8252.892325,0.00043258,14]
[313429112,1707337848663,-8252.892325,0.00043258,14]
[313429113,1707337848673,-151.0,0.00043258,14]
[313429114,1707337848682,-151.0,0.00043258,14]
[313429115,1707337848692,-151.0,0.00043258,14]
[313429116,1707337848702,-151.0,0.00043258,14]
[313429117,1707337848711,-161.289658,0.00043258,14]
[313429118,1707337848724,-161.289658,0.00043258,14]
[313429119,1707337848734,-385.695419,0.00043258,14]
[313429120,1707337848743,-385.695419,0.00043258,14]
[313429121,1707337848753,-151.0,0.00043258,14]
[313429122,1707337848762,-151.0,0.00043258,14]
[313429123,1707337848772,-151.0,0.00043258,14]